Body Name,Body,Service Level,Expense Type,Expense Code,Narrative,Date,Transaction Number,Amount,Capital and Revenue,Supplier Name,Supplier ID
South Ribble Council,http://statistics.data.gov.uk/doc/local-authority/30UN,Property Services,Rep & Maint Premises,2020,Penwortham Holme - Re-design of the building drawing and specifications,02/11/2016,0000427158,500.00,Revenue,4DCAD Ltd,131995
South Ribble Council,http://statistics.data.gov.uk/doc/local-authority/30UN,Area 2 - Waste Transport/Eastern & Central Teams,Agency Fees,1121,HIRE OF PERSONNEL - NAME REDACTED (39 HOURS PER WEEK FOR 8 WEEKS) @9.95/HOUR,02/11/2016,0000427503,388.05,Revenue,ACE PERSONNEL,00015095
South Ribble Council,http://statistics.data.gov.uk/doc/local-authority/30UN,Area 2 - Waste Transport/Eastern & Central Teams,Agency Fees,1121,HIRE OF PERSONNEL - NAME REDACTED (TO WORK 22/8/2016 UNTIL 14/10/2016 - 8 WEEKS) 39 HOURS PER WEEK,02/11/2016,0000427508,376.35,Revenue,ACE PERSONNEL,00015095
South Ribble Council,http://statistics.data.gov.uk/doc/local-authority/30UN,Area 2 - Waste Transport/Eastern & Central Teams,Agency Fees,1121,NAME REDACTED 10/10/16,02/11/2016,0000427590,388.05,Revenue,ACE PERSONNEL,00015095
South Ribble Council,http://statistics.data.gov.uk/doc/local-authority/30UN,Area 2 - Waste Transport/Eastern & Central Teams,Agency Fees,1121,NAME REDACTED ,02/11/2016,0000427591,376.35,Revenue,ACE PERSONNEL,00015095
South Ribble Council,http://statistics.data.gov.uk/doc/local-authority/30UN,Area 1 - Penwortham Western Parishes,Agency Fees,1121,HIRE OF PERSONNEL - NAME REDACTED - EXTENSION TO PUR0026160 (TO COVER WEEK COMMENCING 17/10/16 ,09/11/2016,0000427736,388.05,Revenue,ACE PERSONNEL,00015095
South Ribble Council,http://statistics.data.gov.uk/doc/local-authority/30UN,Area 1 - Penwortham Western Parishes,Agency Fees,1121,AS ABOVE - TO COVER WEEK COMMENCING 24/10/16,09/11/2016,0000427873,388.05,Revenue,ACE PERSONNEL,00015095
South Ribble Council,http://statistics.data.gov.uk/doc/local-authority/30UN,Democratic Services,Other Expenses,463A,"Please supply the audio system for Remembrance Sunday, 13th November 2016 at Leyland Cenotaph",18/11/2016,0000428116,355.00,Revenue,ACTIVE AV LTD,131458
South Ribble Council,http://statistics.data.gov.uk/doc/local-authority/30UN,Area 3 - Parks/Leyland East West,Capital Expenditure,C230,"Works and Production of Drawings for Existing and Proposed Plan and Elevation Views of the Display House, Worden Park",18/11/2016,0000427704,"2,500.00",Revenue,Alitex Ltd,132080
South Ribble Council,http://statistics.data.gov.uk/doc/local-authority/30UN,Area 3 - Parks/Leyland East West,Capital Expenditure,C230,"Design Works and Production of Drawings for Existing and Proposed Plan and Elevation Views of the Vine House,Worden Park",18/11/2016,0000427704,"2,500.00",Revenue,Alitex Ltd,132080
South Ribble Council,http://statistics.data.gov.uk/doc/local-authority/30UN,Revenues Plus,Financial,4811,po trans,09/11/2016,0000427827,"1,153.30",Revenue,ALLPAY LTD,00122276
South Ribble Council,http://statistics.data.gov.uk/doc/local-authority/30UN,Revenues Plus,Financial,4811,paypoint,09/11/2016,0000427827,197.55,Revenue,ALLPAY LTD,00122276
South Ribble Council,http://statistics.data.gov.uk/doc/local-authority/30UN,Revenues Plus,Financial,4811,webconn,09/11/2016,0000427827,46.05,Revenue,ALLPAY LTD,00122276
South Ribble Council,http://statistics.data.gov.uk/doc/local-authority/30UN,Development Enterprise & Comm Mgnt,Other Misc,485A,Coastal Communities Fund Small Business Grants of 394.80,25/11/2016,0000428279,394.79,Revenue,NAME REDACTEED,132116
South Ribble Council,http://statistics.data.gov.uk/doc/local-authority/30UN,Housing,Cap Grant- Improve Grants,C570,DFG Adaptation work at ADDRESS REDACTED as per your quote of 2395.00,25/11/2016,0000428280,"2,395.00",Revenue,APG DOMESTIC SERVICES,00061463
South Ribble Council,http://statistics.data.gov.uk/doc/local-authority/30UN,Regeneration,Capital Expenditure,C234,project support October,09/11/2016,0000427655,"1,000.00",Revenue,ARMSTRONG CONSULTING,131444
South Ribble Council,http://statistics.data.gov.uk/doc/local-authority/30UN,Development Enterprise & Comm Mgnt,Other Misc,4851,"Consultancy fees as per Contract 1st of June and subsequent letter 18th May Co-Location Project June 2016 - 2000 July 2016",16/11/2016,0000428056,"2,500.00",Revenue,ARMSTRONG CONSULTING,131444
South Ribble Council,http://statistics.data.gov.uk/doc/local-authority/30UN,Regeneration,Other Misc,4851,Additional Artwork for printing of colocation report,25/11/2016,0000428344,582.00,Revenue,ARMSTRONG CONSULTING,131444
South Ribble Council,http://statistics.data.gov.uk/doc/local-authority/30UN,Development Enterprise & Comm Mgnt,Other Misc,4851,Print of Business Model and Plan for colocation Services in South Ribble 50 Copies,30/11/2016,0000428345,383.00,Revenue,ARMSTRONG CONSULTING,131444
South Ribble Council,http://statistics.data.gov.uk/doc/local-authority/30UN,Property Services,Rep & Maint Premises,2020,Please supply & deliver  1 x 039370 with electrical isolator to ADDRESS REDACTED on Friday 14th October 2016 ,16/11/2016,0000427952,297.60,Revenue,ASHTEAD PLANT HIRE CO LTD,00014245
South Ribble Council,http://statistics.data.gov.uk/doc/local-authority/30UN,Information Services,Peripherals,4248,IDEA v8 Single User (dongle) renewal for period 16/10/16 - 15/10/17,04/11/2016,0000427805,670.00,Revenue,AUDITWARE SYSTEMS LIMITED,00114938
South Ribble Council,http://statistics.data.gov.uk/doc/local-authority/30UN,Property Services,Rep & Maint Premises,2020,Annual Contract 2016/2017 for servicing the doors at Moss Side Depot based on last year`s contract (ref 18617/CB),30/11/2016,0000428212,490.00,Revenue,AVALON DOORS & AWNINGS LTD,131051
South Ribble Council,http://statistics.data.gov.uk/doc/local-authority/30UN,Property Services,Rep & Maint Premises,2020,Annual Contract 2016/2017 for servicing doors at Longton Brickcroft based on last years contract (ref 18617/CB,30/11/2016,0000428212,150.00,Revenue,AVALON DOORS & AWNINGS LTD,131051
South Ribble Council,http://statistics.data.gov.uk/doc/local-authority/30UN,Property Services,Rep & Maint Premises,2020,Annual Contract 2016/2017 for service of doors at Leyland Market Various Stalls based od last year`s (ref 18617/CB,30/11/2016,0000428212,430.00,Revenue,AVALON DOORS & AWNINGS LTD,131051
South Ribble Council,http://statistics.data.gov.uk/doc/local-authority/30UN,Area 1 - Penwortham Western Parishes,Materials General,4040,100 PARKING PERMITS FOR WORDEN PARK Number from 401 - 500 Estimate 120758,09/11/2016,0000427745,272.00,Revenue,B & D PRINT SERVICES LTD,00015134
South Ribble Council,http://statistics.data.gov.uk/doc/local-authority/30UN,Area 3 - Parks/Leyland East West,Capital Expenditure,C234,Supply 2 x 566H Harrier Pro 22`` Self Propelled Rear Roller Pedestrian Rotary Mowers,18/11/2016,0000428013,"1,660.00",Revenue,BALMERS GM LTD,00016023
South Ribble Council,http://statistics.data.gov.uk/doc/local-authority/30UN,Area 2 - Waste Transport/Eastern & Central Teams,Cap Vehicles,C451,Multi Seeder,30/11/2016,0000428370,"6,500.00",Revenue,BALMERS GM LTD,00016023
South Ribble Council,http://statistics.data.gov.uk/doc/local-authority/30UN,Regeneration,Capital Expenditure,C234,92nr 1200x500mm  concrete blocks as per quote 20035B.,23/11/2016,0000427595,"10,304.00",Revenue,Barcon Systems Limited,132074
South Ribble Council,http://statistics.data.gov.uk/doc/local-authority/30UN,Regeneration,Capital Expenditure,C234,92nr 1200x500mm concrete blocks as per quote 20035B.,23/11/2016,0000427953,"10,304.00",Revenue,Barcon Systems Limited,132074
South Ribble Council,http://statistics.data.gov.uk/doc/local-authority/30UN,Regeneration,Capital Expenditure,C234,92nr 1200x500mm concrete blocks as per quote 20035B.,23/11/2016,0000427954,"2,944.00",Revenue,Barcon Systems Limited,132074
South Ribble Council,http://statistics.data.gov.uk/doc/local-authority/30UN,Regeneration,Capital Expenditure,C234,92nr 1200x500mm concrete blocks as per quote 20035B.,23/11/2016,0000427955,"10,304.00",Revenue,Barcon Systems Limited,132074
South Ribble Council,http://statistics.data.gov.uk/doc/local-authority/30UN,Regeneration,Other Misc,4851,gateway/pedestrian improvements.,23/11/2016,0000428214,860.00,Revenue,Barrons,132059
South Ribble Council,http://statistics.data.gov.uk/doc/local-authority/30UN,Property Services,Rep & Maint Premises,2020,Annual Contract 2016/2017 Electrical Testing and Electrical  Installation Test at Museum,02/11/2016,0000427671,207.00,Revenue,BELEC ELECTRICAL LTD,130290
South Ribble Council,http://statistics.data.gov.uk/doc/local-authority/30UN,Property Services,Rep & Maint Premises,2020,Annual Contract 2016/2017 Electrical Testing and Electrical  Installation Test at Public Conveniences,02/11/2016,0000427671,138.00,Revenue,BELEC ELECTRICAL LTD,130290
South Ribble Council,http://statistics.data.gov.uk/doc/local-authority/30UN,Property Services,Rep & Maint Premises,2020,Annual Contract for Electrical Test 2016/2017 for Derby  Wing (1) Worden Park,04/11/2016,0000427793,414.00,Revenue,BELEC ELECTRICAL LTD,130290
South Ribble Council,http://statistics.data.gov.uk/doc/local-authority/30UN,Property Services,Rep & Maint Premises,2020,Please investigate faulty storage heater at ADDRESS REDACTED Please repair the faulty storage heater as per investigation,16/11/2016,0000427966,363.45,Revenue,BELEC ELECTRICAL LTD,130290
South Ribble Council,http://statistics.data.gov.uk/doc/local-authority/30UN,Property Services,Rep & Maint Premises,2020,Annual Contract  2016/2017 for Electrical Testing/Electrical Installation Test at Worden Arts Centre,16/11/2016,0000427969,414.00,Revenue,BELEC ELECTRICAL LTD,130290
South Ribble Council,http://statistics.data.gov.uk/doc/local-authority/30UN,Development Enterprise & Comm Mgnt,Other Misc,4851,"Truck trail launch on Friday 18th November 7:30am-10am Including breakfast, teas and coffee. @550",30/11/2016,0000428307,419.17,Revenue,BEST WESTERN PREMIER LEYLAND HOTEL,00090117
South Ribble Council,http://statistics.data.gov.uk/doc/local-authority/30UN,Healthy Communities,Other Misc,4851,Various Sports Equipment,04/11/2016,0000427731,295.29,Revenue,Bishop Sports & Leisure Ltd,131843
South Ribble Council,http://statistics.data.gov.uk/doc/local-authority/30UN,Healthy Communities,Other Misc,4851,Various Sports Equipment,09/11/2016,0000427784,328.05,Revenue,Bishop Sports & Leisure Ltd,131843
South Ribble Council,http://statistics.data.gov.uk/doc/local-authority/30UN,Regeneration,Capital Expenditure,C234,Tools and Equipment for Bamber Bridge,09/11/2016,0000427821,487.20,Revenue,C & W BERRY LTD,00015231
South Ribble Council,http://statistics.data.gov.uk/doc/local-authority/30UN,Regeneration,Capital Expenditure,C234,Tools and Equipment for Bamber Bridge,09/11/2016,0000427822,324.80,Revenue,C & W BERRY LTD,00015231
South Ribble Council,http://statistics.data.gov.uk/doc/local-authority/30UN,Information Services,Capital Expenditure,C234,RedHat 5 to 6 migration service,18/11/2016,0000428118,"4,750.00",Revenue,CAPITA BUSINESS SERVICES LTD,00122179
South Ribble Council,http://statistics.data.gov.uk/doc/local-authority/30UN,Area 3 - Parks/Leyland East West,Grounds Maint Cntrctrs Chgs,4657,GATE,18/11/2016,0000427705,387.00,Revenue,CENTREWIRE,131861
South Ribble Council,http://statistics.data.gov.uk/doc/local-authority/30UN,Homelessness,Contributions,4730,"Cotswold house - SRBC block booking October 2016 Flat 20   31 days, at a total of 1093.68 +VAT.",04/11/2016,0000427740,"1,093.68",Revenue,CHORLEY BOROUGH COUNCIL,00017352
South Ribble Council,http://statistics.data.gov.uk/doc/local-authority/30UN,Area 3 - Parks/Leyland East West,Grounds Maint Cntrctrs Chgs,4657,Supply & Delivery of 2m3 GEN 1 Concrete (Slump S3) To ADDRESS REDACTED,30/11/2016,0000428379,270.00,Revenue,Chorley Concrete Ltd,132076
South Ribble Council,http://statistics.data.gov.uk/doc/local-authority/30UN,Property Services,Rep & Maint Premises,2020,Please arrange for Light bulbs for collection as per quotation 18734 of 25.10.2016,09/11/2016,0000427794,312.45,Revenue,CHORLEY ELECTRICAL TRADERS LTD,00018597
South Ribble Council,http://statistics.data.gov.uk/doc/local-authority/30UN,Housing,Licence Fees,4884,Qualitative studies on housing need by My Neighbourhood area and adapted accommodation need study.,18/11/2016,0000427320,"1,800.00",Revenue,Chris Broughton Associates,132069
South Ribble Council,http://statistics.data.gov.uk/doc/local-authority/30UN,Shared Financial Services,Training Expense-Course Fees,1406,One place for Councillor NAME REDACTED on the Treasury FAN seminar to be held in Manchester on 12th September 2016,11/11/2016,0000427795,345.00,Revenue,CIPFA BUSINESS LTD,00017187
South Ribble Council,http://statistics.data.gov.uk/doc/local-authority/30UN,Area 1 - Penwortham Western Parishes,Contract Hire & Lease Costs,3212,HIRE OF 15 TON MECHANICAL ROAD SWEEPER - ON HIRE 3.10.16 @ 651.00 PER WEEK TO INCLUDE DELIVERY,09/11/2016,0000427785,"1,024.00",Revenue,COLLETT TRANSPORT  SERVICES (CTS),131676
South Ribble Council,http://statistics.data.gov.uk/doc/local-authority/30UN,Area 1 - Penwortham Western Parishes,Contract Hire & Lease Costs,3212,HIRE FOR W/C 10.10.16,09/11/2016,0000427785,651.00,Revenue,COLLETT TRANSPORT  SERVICES (CTS),131676
South Ribble Council,http://statistics.data.gov.uk/doc/local-authority/30UN,Area 1 - Penwortham Western Parishes,Contract Hire & Lease Costs,3212,HIRE FOR W/C 17.10.16,09/11/2016,0000427785,651.00,Revenue,COLLETT TRANSPORT  SERVICES (CTS),131676
South Ribble Council,http://statistics.data.gov.uk/doc/local-authority/30UN,Area 1 - Penwortham Western Parishes,Contract Hire & Lease Costs,3212,HIRE FOR W/C 24.10.16,09/11/2016,0000427785,651.00,Revenue,COLLETT TRANSPORT  SERVICES (CTS),131676
South Ribble Council,http://statistics.data.gov.uk/doc/local-authority/30UN,Regeneration,Other Misc,4851,Batteries for Christmas lights,04/11/2016,0000427779,487.19,Revenue,COMBINED PRECISION COMPONENTS PLC,00017954
South Ribble Council,http://statistics.data.gov.uk/doc/local-authority/30UN,HR & Communications,Balance Sheet,0030,CHILDCARE VOUCHERS NOVEMBER 2016,23/11/2016,0000427841,"2,780.02",Revenue,COMPUTERSHARE VOUCHER SERVICES,00116499
South Ribble Council,http://statistics.data.gov.uk/doc/local-authority/30UN,Property Services,Rep & Maint Premises,2020,Please attend Leyland Market - NAME REDACTED - 1 x full glass door made and fitted to the old beauticians.(9A)  Manufacture,11/11/2016,0000427922,396.00,Revenue,COOPER BESPOKE JOINERY LTD,00104456
South Ribble Council,http://statistics.data.gov.uk/doc/local-authority/30UN,Property Services,Rep & Maint Premises,2020,materials,11/11/2016,0000427922,267.65,Revenue,COOPER BESPOKE JOINERY LTD,00104456
South Ribble Council,http://statistics.data.gov.uk/doc/local-authority/30UN,Property Services,Rep & Maint Premises,2020,Please manufacture a back door with 4 double glazed panel in the top & frame for ADDRESS REDACTED,30/11/2016,0000428366,717.00,Revenue,COOPER BESPOKE JOINERY LTD,00104456
South Ribble Council,http://statistics.data.gov.uk/doc/local-authority/30UN,Property Services,Rep & Maint Premises,2020,Please manufacture and fit a front door & frame to 5 Farmyard cottages as per discussion with property services,30/11/2016,0000428366,717.00,Revenue,COOPER BESPOKE JOINERY LTD,00104456
South Ribble Council,http://statistics.data.gov.uk/doc/local-authority/30UN,Property Services,Rep & Maint Premises,2020,materials line 1,30/11/2016,0000428366,291.70,Revenue,COOPER BESPOKE JOINERY LTD,00104456
South Ribble Council,http://statistics.data.gov.uk/doc/local-authority/30UN,Property Services,Rep & Maint Premises,2020,materials line2,30/11/2016,0000428366,250.52,Revenue,COOPER BESPOKE JOINERY LTD,00104456
South Ribble Council,http://statistics.data.gov.uk/doc/local-authority/30UN,Housing,Cap Grant- Improve Grants,C570,DFG WORKS AT ADDRESS REDACTED,30/11/2016,0000428282,"8,464.42",Revenue,Cornerstone Building & Maintenance Ltd,131383
South Ribble Council,http://statistics.data.gov.uk/doc/local-authority/30UN,HR & Communications,Advertising,4848,PRINTING OF WINTER WARMER POSTCARDS (2000),23/11/2016,0000428129,299.00,Revenue,CORPORATE DESIGN COMPANY (CDC) LIMITED,00096564
South Ribble Council,http://statistics.data.gov.uk/doc/local-authority/30UN,Revenues Plus,Postage,4291,Mail Services,09/11/2016,0000427846,656.64,Revenue,CRITIQOM,131053
South Ribble Council,http://statistics.data.gov.uk/doc/local-authority/30UN,Revenues Plus,Postage,4291,"21,000 Prime post C5 white envelopes",16/11/2016,0000428014,252.00,Revenue,CRITIQOM,131053
South Ribble Council,http://statistics.data.gov.uk/doc/local-authority/30UN,Revenues Plus,Stationery,4130,Stationery,30/11/2016,0000428373,80.28,Revenue,CRITIQOM,131053
South Ribble Council,http://statistics.data.gov.uk/doc/local-authority/30UN,Revenues Plus,Postage,4291,Postage,30/11/2016,0000428373,215.69,Revenue,CRITIQOM,131053
South Ribble Council,http://statistics.data.gov.uk/doc/local-authority/30UN,Information Services,Peripherals,4269,Clearswift SECURE Email Gateway  (SEG) subscription - Kaspersky x 500 Users for period 28/11/16 - 27/11/17,30/11/2016,0000428371,"5,480.00",Revenue,CYGNIA TECHNOLOGIES LTD,131014
South Ribble Council,http://statistics.data.gov.uk/doc/local-authority/30UN,Information Services,Peripherals,4245,Annual Disaster Recovery Services 1/4/16 to 31/3/17,04/11/2016,0000427786,"2,454.89",Revenue,DAISY IT CONTINUITY and RESILIENCE SERVICES LTD,131708
South Ribble Council,http://statistics.data.gov.uk/doc/local-authority/30UN,Area 2 - Waste Transport/Eastern & Central Teams,External Contractors Charges,4570,SUPPLY & FIT NEW O/S + N/S WINGS - MV12 SUF -7768,18/11/2016,0000428128,412.00,Revenue,DAVAND LTD (trading as Longton Coachcraft),131579
South Ribble Council,http://statistics.data.gov.uk/doc/local-authority/30UN,Healthy Communities,Other Misc,4851,Delivery of cycling activity and bike maintenance - between September and January 2017,16/11/2016,0000428098,495.00,Revenue,NAME REDACTEED,132006
South Ribble Council,http://statistics.data.gov.uk/doc/local-authority/30UN,Healthy Communities,Other Misc,4851,Delivery of cycling activity and bike maintenance - between September and January 2017,23/11/2016,0000428224,585.00,Revenue,NAME REDACTEED,132006
South Ribble Council,http://statistics.data.gov.uk/doc/local-authority/30UN,Area 2 - Waste Transport/Eastern & Central Teams,Materials General,4040,3 AIRBAGS - VN10 DKL - JFC7709 - AW,09/11/2016,0000427807,"1,005.80",Revenue,DENNIS EAGLE LTD,00019774
South Ribble Council,http://statistics.data.gov.uk/doc/local-authority/30UN,Area 2 - Waste Transport/Eastern & Central Teams,Operational Furniture & Equip,4010,ACCESS PLATFORM - PD,30/11/2016,0000428398,"5,800.00",Revenue,DENNIS EAGLE LTD,00019774
South Ribble Council,http://statistics.data.gov.uk/doc/local-authority/30UN,Neighbourhood Admin & Support,Operational Furniture & Equip,4010,CHAINSAW CHAIN 12`` - ST36160030044,30/11/2016,0000428179,26.11,Revenue,NAME REDACTEED,00026534
South Ribble Council,http://statistics.data.gov.uk/doc/local-authority/30UN,Neighbourhood Admin & Support,Materials General,4040,Leather Scabard for Pruning Saw (fits TPP6870 blade) - WWAC7300,30/11/2016,0000428179,199.50,Revenue,NAME REDACTEED,00026534
South Ribble Council,http://statistics.data.gov.uk/doc/local-authority/30UN,Neighbourhood Admin & Support,Materials General,4040, 2 STROKE OIL SACHETS - ST07813198401,30/11/2016,0000428179,67.20,Revenue,NAME REDACTEED,00026534
South Ribble Council,http://statistics.data.gov.uk/doc/local-authority/30UN,Neighbourhood Admin & Support,Materials General,4040,del charge,30/11/2016,0000428179,3.00,Revenue,NAME REDACTEED,00026534
South Ribble Council,http://statistics.data.gov.uk/doc/local-authority/30UN,Property Services,Capital Expenditure,C230,"contract dated 10th June 2015 -  renewal of one complete lift system and removal of, including associated electrical supplies",16/11/2016,0000428039,"12,047.42",Revenue,E A Foulds Limited,131427
South Ribble Council,http://statistics.data.gov.uk/doc/local-authority/30UN,Information Services,Peripherals,4260,Peripherals,09/11/2016,0000427908,"2,281.68",Revenue,EE Ltd,131653
South Ribble Council,http://statistics.data.gov.uk/doc/local-authority/30UN,HR & Communications,Professional Fees,4513,ADVICE FOR 5 HOURS - APPOINTMENT OF STATUTORY OFFICERS,09/11/2016,0000427862,"1,125.00",Revenue,NAME REDACTEED,132110
South Ribble Council,http://statistics.data.gov.uk/doc/local-authority/30UN,Legal,Professional Fees,4513,FURTHER ADVICE - 4 HOURS,16/11/2016,0000427997,900.00,Revenue,NAME REDACTEED,132110
South Ribble Council,http://statistics.data.gov.uk/doc/local-authority/30UN,Area 2 - Waste Transport/Eastern & Central Teams,Cap Vehicles,C440,"80 X 1100 Ltr FL CONTAINER c/w 200mm BRAKE WHEELS AND OPEN/CLOSE LID LOCK, SUPPLIED FULLY ASSEMBLED. ",02/11/2016,0000427564,"9,718.40",Revenue,ESE WORLD LTD,130042
South Ribble Council,http://statistics.data.gov.uk/doc/local-authority/30UN,Area 2 - Waste Transport/Eastern & Central Teams,Balance Sheet,0030,RETENTION CLAIM BACK - REFUSE,02/11/2016,0000427465,"15,393.62",Revenue,FCC Environment Services (UK) Ltd,131612
South Ribble Council,http://statistics.data.gov.uk/doc/local-authority/30UN,Area 2 - Waste Transport/Eastern & Central Teams,Balance Sheet,0030,RETENTION CLAIM BACK - RECYCLING,02/11/2016,0000427465,"22,108.75",Revenue,FCC Environment Services (UK) Ltd,131612
South Ribble Council,http://statistics.data.gov.uk/doc/local-authority/30UN,Area 2 - Waste Transport/Eastern & Central Teams,Balance Sheet,0030,RETENTION CLAIM BACK - CLINICAL,02/11/2016,0000427465,158.16,Revenue,FCC Environment Services (UK) Ltd,131612
South Ribble Council,http://statistics.data.gov.uk/doc/local-authority/30UN,Area 2 - Waste Transport/Eastern & Central Teams,Balance Sheet,0030,RETENTION CLAIM BACK - INFLATION CATCH UP,02/11/2016,0000427465,46.03,Revenue,FCC Environment Services (UK) Ltd,131612
South Ribble Council,http://statistics.data.gov.uk/doc/local-authority/30UN,Area 2 - Waste Transport/Eastern & Central Teams,External Contractors Charges,4570,Additional Clinical Waste Collections October 2016,09/11/2016,0000427856,500.52,Revenue,FCC Environment Services (UK) Ltd,131612
South Ribble Council,http://statistics.data.gov.uk/doc/local-authority/30UN,Area 2 - Waste Transport/Eastern & Central Teams,Balance Sheet,0030,retention fee,09/11/2016,0000427856,-25.03,Revenue,FCC Environment Services (UK) Ltd,131612
South Ribble Council,http://statistics.data.gov.uk/doc/local-authority/30UN,Area 2 - Waste Transport/Eastern & Central Teams,External Contractors Charges,4570,RESIDUAL WASTE - OC TOBER 2016,18/11/2016,0000428024,"41,017.97",Revenue,FCC Environment Services (UK) Ltd,131612
South Ribble Council,http://statistics.data.gov.uk/doc/local-authority/30UN,Area 2 - Waste Transport/Eastern & Central Teams,External Contractors Charges,4570,DRY RECYCLABLE  NON-TERRACED OCTOBER 2016,18/11/2016,0000428024,"42,003.41",Revenue,FCC Environment Services (UK) Ltd,131612
South Ribble Council,http://statistics.data.gov.uk/doc/local-authority/30UN,Area 2 - Waste Transport/Eastern & Central Teams,External Contractors Charges,4570,DRY RECYCLABLE - TERRACED OCTOBER 2016,18/11/2016,0000428024,"1,995.32",Revenue,FCC Environment Services (UK) Ltd,131612
South Ribble Council,http://statistics.data.gov.uk/doc/local-authority/30UN,Area 2 - Waste Transport/Eastern & Central Teams,External Contractors Charges,4570,ORGANIC WASTE NON-TERRACED OCTOBER 2016,18/11/2016,0000428024,"29,109.43",Revenue,FCC Environment Services (UK) Ltd,131612
South Ribble Council,http://statistics.data.gov.uk/doc/local-authority/30UN,Area 2 - Waste Transport/Eastern & Central Teams,External Contractors Charges,4570,SCHEDULE 2 PROPERTIES OCTOBER 2016,18/11/2016,0000428024,"1,666.50",Revenue,FCC Environment Services (UK) Ltd,131612
South Ribble Council,http://statistics.data.gov.uk/doc/local-authority/30UN,Area 2 - Waste Transport/Eastern & Central Teams,External Contractors Charges,4570,COMMERCIAL WASTE - OCTOBER 2016,18/11/2016,0000428024,"6,522.89",Revenue,FCC Environment Services (UK) Ltd,131612
South Ribble Council,http://statistics.data.gov.uk/doc/local-authority/30UN,Area 2 - Waste Transport/Eastern & Central Teams,External Contractors Charges,4570,BULKY WASTE - OCTOBER 2016,18/11/2016,0000428024,902.24,Revenue,FCC Environment Services (UK) Ltd,131612
South Ribble Council,http://statistics.data.gov.uk/doc/local-authority/30UN,Area 2 - Waste Transport/Eastern & Central Teams,External Contractors Charges,4570,WEEE COLLECTIONS - OCTOBER 2016,18/11/2016,0000428024,337.57,Revenue,FCC Environment Services (UK) Ltd,131612
South Ribble Council,http://statistics.data.gov.uk/doc/local-authority/30UN,Area 2 - Waste Transport/Eastern & Central Teams,External Contractors Charges,4570,CLINICAL WASTE COLLECTIONS - OCTOBER 2016,18/11/2016,0000428024,574.92,Revenue,FCC Environment Services (UK) Ltd,131612
South Ribble Council,http://statistics.data.gov.uk/doc/local-authority/30UN,Area 2 - Waste Transport/Eastern & Central Teams,External Contractors Charges,4570,ADDITIONAL PROPERTIES - OCTOBER 2016,18/11/2016,0000428024,717.33,Revenue,FCC Environment Services (UK) Ltd,131612
South Ribble Council,http://statistics.data.gov.uk/doc/local-authority/30UN,Area 2 - Waste Transport/Eastern & Central Teams,External Contractors Charges,4570,REPLACEMENT BINS - OCTOBER 2016,18/11/2016,0000428024,"5,000.00",Revenue,FCC Environment Services (UK) Ltd,131612
South Ribble Council,http://statistics.data.gov.uk/doc/local-authority/30UN,Area 2 - Waste Transport/Eastern & Central Teams,Balance Sheet,0030,retention refuse,18/11/2016,0000428024,"-2,586.97",Revenue,FCC Environment Services (UK) Ltd,131612
South Ribble Council,http://statistics.data.gov.uk/doc/local-authority/30UN,Area 2 - Waste Transport/Eastern & Central Teams,Balance Sheet,0030,retention recycle,18/11/2016,0000428024,"-3,655.41",Revenue,FCC Environment Services (UK) Ltd,131612
South Ribble Council,http://statistics.data.gov.uk/doc/local-authority/30UN,Area 3 - Parks/Leyland East West,Grounds Maint Cntrctrs Chgs,4657,Quotation No 26024 20x SW53 - 7mm Compnent Connector @ 6.00,09/11/2016,0000427440,120.00,Revenue,FENLAND LEISURE LTD,130725
South Ribble Council,http://statistics.data.gov.uk/doc/local-authority/30UN,Area 3 - Parks/Leyland East West,Grounds Maint Cntrctrs Chgs,4657,50x SW15 - 12WIC - Wicksteed Shackle @ 3.30,09/11/2016,0000427440,165.00,Revenue,FENLAND LEISURE LTD,130725
South Ribble Council,http://statistics.data.gov.uk/doc/local-authority/30UN,Area 3 - Parks/Leyland East West,Grounds Maint Cntrctrs Chgs,4657,Delivery,09/11/2016,0000427440,19.50,Revenue,FENLAND LEISURE LTD,130725
South Ribble Council,http://statistics.data.gov.uk/doc/local-authority/30UN,Area 3 - Parks/Leyland East West,Grounds Maint Cntrctrs Chgs,4657,50 X MV-003M OUTDOOR LED MULTI-COLOURED LIGHTS 10 METRES IN LENGTH (15.99 EACH),18/11/2016,0000428138,799.50,Revenue,FESTIVE LIGHTS,130235
South Ribble Council,http://statistics.data.gov.uk/doc/local-authority/30UN,Area 3 - Parks/Leyland East West,Grounds Maint Cntrctrs Chgs,4657,6 X MV023B - 10 METRE EXTENSION CABLES (@8.66 EACH),18/11/2016,0000428138,51.96,Revenue,FESTIVE LIGHTS,130235
South Ribble Council,http://statistics.data.gov.uk/doc/local-authority/30UN,Regeneration,Capital Expenditure,C234,Benches for Bamber Bridge Improvements,04/11/2016,0000427625,"1,320.00",Revenue,FURNITUBES INTERNATIONAL LIMITED,131320
South Ribble Council,http://statistics.data.gov.uk/doc/local-authority/30UN,Regeneration,Capital Expenditure,C234,"Print Cartridge for HP Plotter Magenta 	x 2	 140.08 	 280.16 Cyan	x 2	 140.08 	 280.16 Grey	x3	 140.08 	 420.24 Black	x2	",25/11/2016,0000428337,"1,934.95",Revenue,GCS UK ASSOCIATES LTD,130671
South Ribble Council,http://statistics.data.gov.uk/doc/local-authority/30UN,Area 1 - Penwortham Western Parishes,Operational Furniture & Equip,4010,1 X ELECTRIC PACK - FOR MV12SWN - RA,02/11/2016,0000427707,"1,453.00",Revenue,GIBSONS GARDEN MACHINERY LTD,00059051
South Ribble Council,http://statistics.data.gov.uk/doc/local-authority/30UN,HR & Communications,Training Expense-Course Fees,1405,CMT PLANNING WORKSHOPS 2 HALF DAY SESSIONS SEPTEMBER/OCTOBER 2016,02/11/2016,0000427717,"1,215.20",Revenue,Greengage Consulting Limited,131402
South Ribble Council,http://statistics.data.gov.uk/doc/local-authority/30UN,Revenues Plus,Professional Fees,4520,Legal Services. Matter No: L0000932,23/11/2016,0000428268,"1,250.00",Revenue,Greenhalgh Kerr,132061
South Ribble Council,http://statistics.data.gov.uk/doc/local-authority/30UN,Area 2 - Waste Transport/Eastern & Central Teams,Materials General,4040,FILTERS FOR STORES,09/11/2016,0000427909,548.28,Revenue,H & J SERVICES LTD,00114446
South Ribble Council,http://statistics.data.gov.uk/doc/local-authority/30UN,Area 3 - Parks/Leyland East West,Rep & Maint Premises,2020,MATERIALS AS PER YOUR QUOTATION REF. 1669954,18/11/2016,0000427941,"1,138.25",Revenue,H S Jackson & Son (Fencing) Ltd,132092
South Ribble Council,http://statistics.data.gov.uk/doc/local-authority/30UN,Area 3 - Parks/Leyland East West,Grounds Maint Cntrctrs Chgs,4657,1x 47999001A/B CLIMBING WALL & FIXINGS,09/11/2016,0000426630,945.00,Revenue,HAGS SMP LTD,130596
South Ribble Council,http://statistics.data.gov.uk/doc/local-authority/30UN,Area 3 - Parks/Leyland East West,Grounds Maint Cntrctrs Chgs,4657,DELIVERY,09/11/2016,0000426630,50.00,Revenue,HAGS SMP LTD,130596
South Ribble Council,http://statistics.data.gov.uk/doc/local-authority/30UN,Area 3 - Parks/Leyland East West,Grounds Maint Cntrctrs Chgs,4657,"2x HAG 8019061 CENTRAL SPINDLE INCLUDING BEARING, CLIP RIVET AND BOLTS @ 60 EACH",09/11/2016,0000427329,120.00,Revenue,HAGS SMP LTD,130596
South Ribble Council,http://statistics.data.gov.uk/doc/local-authority/30UN,Area 3 - Parks/Leyland East West,Grounds Maint Cntrctrs Chgs,4657,6x HAG 8018673 PEDAL ASSEMBLY @ 340,09/11/2016,0000427329,"2,040.00",Revenue,HAGS SMP LTD,130596
South Ribble Council,http://statistics.data.gov.uk/doc/local-authority/30UN,Area 3 - Parks/Leyland East West,Grounds Maint Cntrctrs Chgs,4657,DELIVERY,09/11/2016,0000427329,50.00,Revenue,HAGS SMP LTD,130596
South Ribble Council,http://statistics.data.gov.uk/doc/local-authority/30UN,Information Services,Capital Expenditure,C234,"Support for Migration (remote) to new server - per day, as per quote ref. 2436",16/11/2016,0000428080,970.00,Revenue,HALAROSE LTD,00024358
South Ribble Council,http://statistics.data.gov.uk/doc/local-authority/30UN,Neighbourhood Admin & Support,Vehicle Running Costs,3132,"17,000 LITRES DIESEL (@90.89 PENCE PER LITRE)",18/11/2016,0000428113,"7,351.20",Revenue,Hall Fuels trading name of WFL (UK) Ltd,00116758
South Ribble Council,http://statistics.data.gov.uk/doc/local-authority/30UN,Neighbourhood Admin & Support,Vehicle Running Costs,3132,"17,000 LITRES DIESEL (@90.89 PENCE PER LITRE)",18/11/2016,0000428114,"8,270.10",Revenue,Hall Fuels trading name of WFL (UK) Ltd,00116758
South Ribble Council,http://statistics.data.gov.uk/doc/local-authority/30UN,Area 2 - Waste Transport/Eastern & Central Teams,External Contractors Charges,4570,1 SPEC REPAIR PWR01/A1 JFC7631,09/11/2016,0000427876,315.89,Revenue,HANSON CLEANING EQUIPMENT LIMITED,00121293
South Ribble Council,http://statistics.data.gov.uk/doc/local-authority/30UN,Property Services,Rep & Maint Premises,2020,Inspection costs for the fall arrest system at the Civic Centre for 3 years @ 300 per year.,09/11/2016,0000427899,300.00,Revenue,HARCON SERVICES LTD,131220
South Ribble Council,http://statistics.data.gov.uk/doc/local-authority/30UN,Information Services,Printing,4127,"2000   x    SRBC 1pp A4 letterhead  -  blue �    2 colour1000  x      SRBC  1pp A4 letterhead � black -1 colour Amends to ",09/11/2016,0000427734,452.00,Revenue,HECKFORD PRINTING LTD T/A HECKFORD ADVER,00023388
South Ribble Council,http://statistics.data.gov.uk/doc/local-authority/30UN,HR & Communications,Training Expense-Course Fees,1402,"SECRETARIAL, PA & ADMINISTRATOR CONFERENC NAME REDACTED ON 17TH NOVEMBER 2016",16/11/2016,0000428019,285.00,Revenue,HEMSLEY FRASER GROUP LTD,132113
South Ribble Council,http://statistics.data.gov.uk/doc/local-authority/30UN,Legal,Professional Fees,4523,24-Oct-16,23/11/2016,0000427713,368.00,Revenue,HM LAND REGISTRY,00023207
South Ribble Council,http://statistics.data.gov.uk/doc/local-authority/30UN,Legal,Professional Fees,4523,24-Oct-16,23/11/2016,0000427715,368.00,Revenue,HM LAND REGISTRY,00023207
South Ribble Council,http://statistics.data.gov.uk/doc/local-authority/30UN,Housing,Cap Grant- Improve Grants,C570,DFG Works to ADDRESS REDACTED,04/11/2016,0000427796,"1,571.39",Revenue,HUGHES BROTHERS BUILDING AND JOINERY LTD,131212
South Ribble Council,http://statistics.data.gov.uk/doc/local-authority/30UN,HR & Communications,Advertising,4848,PICTURES OF THE LAUNCH OF THE TRUCK TRAIL ON FRIDAY 18TH NOVEMBER 2016,23/11/2016,0000428227,250.00,Revenue,NAME REDACTEED,132041
South Ribble Council,http://statistics.data.gov.uk/doc/local-authority/30UN,Revenues Plus,Professional Fees,4510,Analyse local - RV finder,04/11/2016,0000427783,720.00,Revenue,Inform CPI Ltd,131666
South Ribble Council,http://statistics.data.gov.uk/doc/local-authority/30UN,Revenues Plus,Professional Fees,4510,Analyse local - RV finder,04/11/2016,0000427790,"3,000.00",Revenue,Inform CPI Ltd,131666
South Ribble Council,http://statistics.data.gov.uk/doc/local-authority/30UN,Revenues Plus,Professional Fees,4510,Analyse local - RV finder,04/11/2016,0000427791,750.00,Revenue,Inform CPI Ltd,131666
South Ribble Council,http://statistics.data.gov.uk/doc/local-authority/30UN,Revenues Plus,Professional Fees,4510,Analyse Local - RV finder,04/11/2016,0000427834,"2,550.00",Revenue,Inform CPI Ltd,131666
South Ribble Council,http://statistics.data.gov.uk/doc/local-authority/30UN,Revenues Plus,Professional Fees,4510,Analyse local - RV finder,04/11/2016,0000427835,"4,620.00",Revenue,Inform CPI Ltd,131666
South Ribble Council,http://statistics.data.gov.uk/doc/local-authority/30UN,Revenues Plus,Professional Fees,4510,RV Finder fee,04/11/2016,0000427836,465.00,Revenue,Inform CPI Ltd,131666
South Ribble Council,http://statistics.data.gov.uk/doc/local-authority/30UN,Information Services,Capital Expenditure,C234,"Web Filtering Security Project, as per quote ref. 2016-5-2576 :- SG 330Security Appliance - UK power cord",04/11/2016,0000427774,"3,717.06",Revenue,INSIGHT UK,00120744
South Ribble Council,http://statistics.data.gov.uk/doc/local-authority/30UN,Information Services,Capital Expenditure,C234,SG 330 Web Protection,04/11/2016,0000427774,"1,190.15",Revenue,INSIGHT UK,00120744
South Ribble Council,http://statistics.data.gov.uk/doc/local-authority/30UN,Information Services,Capital Expenditure,C234,SG 330 Network Protection,04/11/2016,0000427774,661.76,Revenue,INSIGHT UK,00120744
South Ribble Council,http://statistics.data.gov.uk/doc/local-authority/30UN,Information Services,Capital Expenditure,C234,Sandstorm for SG 330,04/11/2016,0000427774,955.24,Revenue,INSIGHT UK,00120744
South Ribble Council,http://statistics.data.gov.uk/doc/local-authority/30UN,Information Services,Capital Expenditure,C234,SG 330 Premium Support,04/11/2016,0000427774,536.17,Revenue,INSIGHT UK,00120744
South Ribble Council,http://statistics.data.gov.uk/doc/local-authority/30UN,Information Services,Capital Expenditure,C234,iView v2 500GB SW/Virtual Appliance - Base Licence,04/11/2016,0000427774,577.69,Revenue,INSIGHT UK,00120744
South Ribble Council,http://statistics.data.gov.uk/doc/local-authority/30UN,Information Services,Capital Expenditure,C234,iView v2 500GB Enhanced Support - 36 months support,04/11/2016,0000427774,171.00,Revenue,INSIGHT UK,00120744
South Ribble Council,http://statistics.data.gov.uk/doc/local-authority/30UN,Information Services,Peripherals,4247,"Professional Services (NSG) - 1 day onsite, as per quote",16/11/2016,0000427917,"1,476.00",Revenue,INSIGHT UK,00120744
South Ribble Council,http://statistics.data.gov.uk/doc/local-authority/30UN,Planning,Operational Furniture & Equip,4010,Adobe acrobat professional licences,23/11/2016,0000428229,458.96,Revenue,INSIGHT UK,00120744
South Ribble Council,http://statistics.data.gov.uk/doc/local-authority/30UN,HR & Communications,Advertising,4848,ACROBAT PRO DC,23/11/2016,0000428230,229.46,Revenue,INSIGHT UK,00120744
South Ribble Council,http://statistics.data.gov.uk/doc/local-authority/30UN,HR & Communications,Advertising,4848,ADOBE PREMIERE PRO CC,23/11/2016,0000428230,249.32,Revenue,INSIGHT UK,00120744
South Ribble Council,http://statistics.data.gov.uk/doc/local-authority/30UN,Neighbourhood Admin & Support,Materials General,4040,QC10 - QUICK SET CONCRETE,30/11/2016,0000428343,"1,228.64",Revenue,INSTARMAC GROUP PLC,00024905
South Ribble Council,http://statistics.data.gov.uk/doc/local-authority/30UN,Neighbourhood Admin & Support,Materials General,4040,PERMANENT POTHOLE REPAIR - TUB - Special,30/11/2016,0000428343,117.84,Revenue,INSTARMAC GROUP PLC,00024905
South Ribble Council,http://statistics.data.gov.uk/doc/local-authority/30UN,Development Enterprise & Comm Mgnt,Other Misc,485A,Costal Communities Fund Small Business Grant,30/11/2016,0000428305,500.00,Revenue,Intelligent Building Processes Ltd,132101
South Ribble Council,http://statistics.data.gov.uk/doc/local-authority/30UN,Housing,Cap Grant- Improve Grants,C570,DFG WORKS AT ADDRESS REDACTED,11/11/2016,0000427976,"10,000.00",Revenue,J & D PRESCOTT BUILDERS,131919
South Ribble Council,http://statistics.data.gov.uk/doc/local-authority/30UN,Revenues Plus,Professional Fees,4525,vat,30/11/2016,0000428317,0.00,Revenue,NAME REDACTEED,00049252
South Ribble Council,http://statistics.data.gov.uk/doc/local-authority/30UN,Revenues Plus,Professional Fees,4525,C Tax Bailiffs fees and arrest warrants,30/11/2016,0000428317,300.00,Revenue,NAME REDACTEED,00049252
South Ribble Council,http://statistics.data.gov.uk/doc/local-authority/30UN,Planning,Professional Fees,4510,Urban Design Consultancy for strategic Site Rate - 375 per day,23/11/2016,0000428231,"1,060.90",Revenue,Jerry Spencer Associates Ltd,132043
South Ribble Council,http://statistics.data.gov.uk/doc/local-authority/30UN,Planning,Advertising,4841,Press notices for planning applications,02/11/2016,0000427696,813.75,Revenue,JOHNSTON PUBLISHING (NORTH WEST),00011345
South Ribble Council,http://statistics.data.gov.uk/doc/local-authority/30UN,Planning,Advertising,4841,Press notices for planning applications,02/11/2016,0000427697,551.25,Revenue,JOHNSTON PUBLISHING (NORTH WEST),00011345
South Ribble Council,http://statistics.data.gov.uk/doc/local-authority/30UN,Planning,Advertising,4841,Press notices for planning applications,02/11/2016,0000427698,551.25,Revenue,JOHNSTON PUBLISHING (NORTH WEST),00011345
South Ribble Council,http://statistics.data.gov.uk/doc/local-authority/30UN,Legal,Other Misc,4851,PUBLIC NOTICE - CONFIRMATION OF FOOTPATH DIVERSION ORDER,11/11/2016,0000427918,603.75,Revenue,JOHNSTON PUBLISHING (NORTH WEST),00011345
South Ribble Council,http://statistics.data.gov.uk/doc/local-authority/30UN,Planning,Advertising,4841,Press notices for planning applications,16/11/2016,0000427961,525.00,Revenue,JOHNSTON PUBLISHING (NORTH WEST),00011345
South Ribble Council,http://statistics.data.gov.uk/doc/local-authority/30UN,Planning,Advertising,4841,Press notices for planning applications,25/11/2016,0000428278,551.25,Revenue,JOHNSTON PUBLISHING (NORTH WEST),00011345
South Ribble Council,http://statistics.data.gov.uk/doc/local-authority/30UN,Area 3 - Parks/Leyland East West,External Contractors Charges,4570,BYPASS MOWING - 5TH - 7TH OCTOBER 2016 (3 DAYS),11/11/2016,0000427946,"2,500.00",Revenue,KAYS TRAFFIC MANAGEMENT LTD,00072342
South Ribble Council,http://statistics.data.gov.uk/doc/local-authority/30UN,Area 1 - Penwortham Western Parishes,External Contractors Charges,4570,Traffic Management - South Ribble Bypasses week commencing 3.10.16,23/11/2016,0000427947,"4,259.00",Revenue,KAYS TRAFFIC MANAGEMENT LTD,00072342
South Ribble Council,http://statistics.data.gov.uk/doc/local-authority/30UN,Area 1 - Penwortham Western Parishes,External Contractors Charges,4570,Traffic Management - South Ribble Bypasses week commencing 3.10.16,23/11/2016,0000427951,"4,259.00",Revenue,KAYS TRAFFIC MANAGEMENT LTD,00072342
South Ribble Council,http://statistics.data.gov.uk/doc/local-authority/30UN,Planning,Professional Fees,4510,Affordable Housing Commuted Sum Policy Economic Viability Report,16/11/2016,0000428040,"3,500.00",Revenue,NAME REDACTEED,131948
South Ribble Council,http://statistics.data.gov.uk/doc/local-authority/30UN,Planning,Legal,4821,Consultation - NAME REDACTED,09/11/2016,0000427863,500.00,Revenue,NAME REDACTEED,132097
South Ribble Council,http://statistics.data.gov.uk/doc/local-authority/30UN,Housing,Cap Grant- Improve Grants,C570,DFG WORKS AT ADDRESS REDACTED,30/11/2016,0000428348,"12,781.15",Revenue,Kneen Developments,131997
South Ribble Council,http://statistics.data.gov.uk/doc/local-authority/30UN,HR & Communications,Rents,2402,X2 SEMINAR ROOM BOOKING ON 7TH NOVEMBER 2016 SEE NAME REDACTED BOOKING FORM FOR FURTHER,23/11/2016,0000428260,180.00,Revenue,LANCASHIRE FOOTBALL ASSOCIATION LTD,00028066
South Ribble Council,http://statistics.data.gov.uk/doc/local-authority/30UN,HR & Communications,Rents,2402,x2 seminar,23/11/2016,0000428260,110.00,Revenue,LANCASHIRE FOOTBALL ASSOCIATION LTD,00028066
South Ribble Council,http://statistics.data.gov.uk/doc/local-authority/30UN,Area 2 - Waste Transport/Eastern & Central Teams,Materials General,4040,1000 LITRES HYDRAULIC OIL (@0.49/litre),02/11/2016,0000427718,490.00,Revenue,LANCASHIRE OILS LTD,131167
South Ribble Council,http://statistics.data.gov.uk/doc/local-authority/30UN,Area 2 - Waste Transport/Eastern & Central Teams,Materials General,4040,205 LITRES OF EP90 OIL (@1.19/litre),02/11/2016,0000427718,243.95,Revenue,LANCASHIRE OILS LTD,131167
South Ribble Council,http://statistics.data.gov.uk/doc/local-authority/30UN,Area 2 - Waste Transport/Eastern & Central Teams,Materials General,4040,1 x 208 LITRE BARREL 10W/30 OIL (@1.37 per litre),16/11/2016,0000428027,284.96,Revenue,LANCASHIRE OILS LTD,131167
South Ribble Council,http://statistics.data.gov.uk/doc/local-authority/30UN,Healthy Communities,Sports Dev Expenses,4890,"The supply of two training courses; 08/09/2016 290 Goods/Services  494.93 08/09/2016 291 Goods/Services  434.32 Total ",18/11/2016,0000428070,434.32,Revenue,LANCASHIRE SPORT PARTNERSHIP LTD,00120003
South Ribble Council,http://statistics.data.gov.uk/doc/local-authority/30UN,Healthy Communities,Sports Dev Expenses,4890,"The supply of two training courses; 08/09/2016 290 Goods/Services  494.93 08/09/2016 291 Goods/Services  434.32 ",18/11/2016,0000428071,494.93,Revenue,LANCASHIRE SPORT PARTNERSHIP LTD,00120003
South Ribble Council,http://statistics.data.gov.uk/doc/local-authority/30UN,Area 2 - Waste Transport/Eastern & Central Teams,Waste Disposal Charges,5112,June 2015 - Incineration of Clinical Waste.,30/11/2016,0000428269,777.48,Revenue,LANCASHIRE TEACHING FT,00120715
South Ribble Council,http://statistics.data.gov.uk/doc/local-authority/30UN,Information Services,Peripherals,4248,GIS Contract renewal for period 01/04/16 - 31/03/17,09/11/2016,0000427874,"7,964.00",Revenue,LANCS COUNTY COUNCIL,00041645
South Ribble Council,http://statistics.data.gov.uk/doc/local-authority/30UN,Area 1 - Penwortham Western Parishes,Professional Fees,4516,BACK OFFICE PROCESSING JULY - SEPTEMBER 2016 360 PCNS @ 3.45,23/11/2016,0000428075,"1,242.00",Revenue,LANCS COUNTY COUNCIL,00041645
South Ribble Council,http://statistics.data.gov.uk/doc/local-authority/30UN,Area 1 - Penwortham Western Parishes,Professional Fees,4516,TEC RECHARGES JULY - SEPTEMBER 2016 19 PCNS @ 7.00,23/11/2016,0000428075,133.00,Revenue,LANCS COUNTY COUNCIL,00041645
South Ribble Council,http://statistics.data.gov.uk/doc/local-authority/30UN,Legal,Other Local Authorities,4530,LAND CHARGES - SEPTEMBER 2016,30/11/2016,0000428349,912.50,Revenue,LANCS COUNTY COUNCIL,00041645
South Ribble Council,http://statistics.data.gov.uk/doc/local-authority/30UN,Legal,Other Local Authorities,4530,LAND CHARGES - OCTOBER 2016,30/11/2016,0000428349,"1,871.50",Revenue,LANCS COUNTY COUNCIL,00041645
South Ribble Council,http://statistics.data.gov.uk/doc/local-authority/30UN,Planning,Printing,4125,Lease Rental - Hewlett Packard Plotters,02/11/2016,0000427733,"1,426.25",Revenue,LDF FINANCE No1 LTD,131373
South Ribble Council,http://statistics.data.gov.uk/doc/local-authority/30UN,HR & Communications,Peripherals,4242,LEARNING MANAGEMENT SYSTEM INCUDING COURSE DIRECTORY 2016/2017,16/11/2016,0000427732,"8,500.00",Revenue,LEARNING POOL,131664
South Ribble Council,http://statistics.data.gov.uk/doc/local-authority/30UN,Area 3 - Parks/Leyland East West,Operational Furniture & Equip,4010,NEW 7MM DIA 2 LEG G8 CHAIN SLING X 3M BP C/W SLING HOOPS (SWL 2.1T),25/11/2016,0000428202,96.00,Revenue,LIFTING PROJECTS UK,131862
South Ribble Council,http://statistics.data.gov.uk/doc/local-authority/30UN,Area 3 - Parks/Leyland East West,Operational Furniture & Equip,4010,NEW 8MM DIA LEG G8 CHAIN SLING X 2M BP C/W SHORTENERS AND SELF LOCKING HOOKS SWL 2.8T,25/11/2016,0000428202,123.15,Revenue,LIFTING PROJECTS UK,131862
South Ribble Council,http://statistics.data.gov.uk/doc/local-authority/30UN,Area 3 - Parks/Leyland East West,Operational Furniture & Equip,4010,REPAIR TO TU16 TIRFOR SERIAL NO 6649LR24,25/11/2016,0000428202,87.00,Revenue,LIFTING PROJECTS UK,131862
South Ribble Council,http://statistics.data.gov.uk/doc/local-authority/30UN,Housing,Cap Grant- Improve Grants,C570,DFG works to property as per quote at ADDRESS REDACTED,30/11/2016,0000428352,"5,000.00",Revenue,NAME REDACTEED,00087434
South Ribble Council,http://statistics.data.gov.uk/doc/local-authority/30UN,Area 2 - Waste Transport/Eastern & Central Teams,External Contractors Charges,4570,spec repair - PJ62UCM - JFC7669 - PD,02/11/2016,0000427760,757.24,Revenue,M WILSON COMMERCIALS LIMITED,130533
South Ribble Council,http://statistics.data.gov.uk/doc/local-authority/30UN,Area 2 - Waste Transport/Eastern & Central Teams,External Contractors Charges,4570,SPEC REPAIR - YP11CFM-7671,09/11/2016,0000427859,384.63,Revenue,M WILSON COMMERCIALS LIMITED,130533
South Ribble Council,http://statistics.data.gov.uk/doc/local-authority/30UN,Area 3 - Parks/Leyland East West,External Contractors Charges,4570,SPEC REPAIR - JFC7710 - PJ62UCG - PD,25/11/2016,0000428191,"1,019.00",Revenue,M WILSON COMMERCIALS LIMITED,130533
South Ribble Council,http://statistics.data.gov.uk/doc/local-authority/30UN,Information Services,Peripherals,4246,MDS44C Full Kit,30/11/2016,0000428304,506.00,Revenue,MDS BATTERY LTD,00116240
South Ribble Council,http://statistics.data.gov.uk/doc/local-authority/30UN,Information Services,Peripherals,4246,Delivery,30/11/2016,0000428304,30.00,Revenue,MDS BATTERY LTD,00116240
South Ribble Council,http://statistics.data.gov.uk/doc/local-authority/30UN,Area 1 - Penwortham Western Parishes,Professional Fees,4521,PROVISION OF STRAY DOG SERVICE - TO COVER OCTOBER 2016,09/11/2016,0000427849,370.46,Revenue,MORNINGSIDE KENNELS,00067755
South Ribble Council,http://statistics.data.gov.uk/doc/local-authority/30UN,Area 3 - Parks/Leyland East West,Grounds Maint Cntrctrs Chgs,4657,2016 Annual Inspections for Children`s Playgrounds.,09/11/2016,0000426982,"1,702.00",Revenue,MORRAL PLAY SERVICES LTD,130490
South Ribble Council,http://statistics.data.gov.uk/doc/local-authority/30UN,Revenues Plus,External Contractors Charges,4575,Capita Benefits Northern User Group Buffet,23/11/2016,0000428204,292.50,Revenue,MOSS HOUSE FARM,00121808
South Ribble Council,http://statistics.data.gov.uk/doc/local-authority/30UN,Planning,Legal,4821,NAME REDACTED - Advising in conference - Prep 1hr Con 1hr,16/11/2016,0000428089,450.00,Revenue,NAME REDACTEED,131194
South Ribble Council,http://statistics.data.gov.uk/doc/local-authority/30UN,HR & Communications,Training Expense-Course Fees,1402,TRAINING ON EMPLOYMENT LAW (UPDATE) OCTOBER 2016 X3 CANDIDATES,09/11/2016,0000427811,260.00,Revenue,N WEST LOCAL AUTH EMPLOYERS ORGANISATION,00029829
South Ribble Council,http://statistics.data.gov.uk/doc/local-authority/30UN,Area 2 - Waste Transport/Eastern & Central Teams,External Contractors Charges,4570,STEAM CLEAN - JFC7459 - PJ62UCM - PD,16/11/2016,0000427978,65.00,Revenue,NAYLORS TRANSPORT (LEYLAND) ltd,00114828
South Ribble Council,http://statistics.data.gov.uk/doc/local-authority/30UN,Area 2 - Waste Transport/Eastern & Central Teams,External Contractors Charges,4570,STEAM CLEAN - JFC7460 - VO65KPZ - PD,16/11/2016,0000427978,65.00,Revenue,NAYLORS TRANSPORT (LEYLAND) ltd,00114828
South Ribble Council,http://statistics.data.gov.uk/doc/local-authority/30UN,Area 2 - Waste Transport/Eastern & Central Teams,External Contractors Charges,4570,STEAM CLEAN - JFC7461 - MX04YNL - PD,16/11/2016,0000427978,65.00,Revenue,NAYLORS TRANSPORT (LEYLAND) ltd,00114828
South Ribble Council,http://statistics.data.gov.uk/doc/local-authority/30UN,Area 2 - Waste Transport/Eastern & Central Teams,External Contractors Charges,4570,STEAM CLEAN - JFC7440 - RV14DTZ - PD,16/11/2016,0000427978,65.00,Revenue,NAYLORS TRANSPORT (LEYLAND) ltd,00114828
South Ribble Council,http://statistics.data.gov.uk/doc/local-authority/30UN,Area 2 - Waste Transport/Eastern & Central Teams,External Contractors Charges,4570,STEAM CLEAN - JFC7462 - YP11CFM - PD,16/11/2016,0000427978,65.00,Revenue,NAYLORS TRANSPORT (LEYLAND) ltd,00114828
South Ribble Council,http://statistics.data.gov.uk/doc/local-authority/30UN,Area 2 - Waste Transport/Eastern & Central Teams,External Contractors Charges,4570,STEAM CLEAN - JFC7442 - PJ62UCH - PD,16/11/2016,0000427978,75.00,Revenue,NAYLORS TRANSPORT (LEYLAND) ltd,00114828
South Ribble Council,http://statistics.data.gov.uk/doc/local-authority/30UN,Area 2 - Waste Transport/Eastern & Central Teams,External Contractors Charges,4570,STEAM CLEAN - JFC7464 - VO65KPY - PD,16/11/2016,0000427978,65.00,Revenue,NAYLORS TRANSPORT (LEYLAND) ltd,00114828
South Ribble Council,http://statistics.data.gov.uk/doc/local-authority/30UN,Area 2 - Waste Transport/Eastern & Central Teams,External Contractors Charges,4570,STEAM CLEAN - JFC7465 - VO65KPX - PD,16/11/2016,0000427978,65.00,Revenue,NAYLORS TRANSPORT (LEYLAND) ltd,00114828
South Ribble Council,http://statistics.data.gov.uk/doc/local-authority/30UN,Area 2 - Waste Transport/Eastern & Central Teams,External Contractors Charges,4570,STEAM CLEAN - JFC7463 - VK09AHJ - PD,16/11/2016,0000427978,65.00,Revenue,NAYLORS TRANSPORT (LEYLAND) ltd,00114828
South Ribble Council,http://statistics.data.gov.uk/doc/local-authority/30UN,Area 2 - Waste Transport/Eastern & Central Teams,External Contractors Charges,4570,STEAM CLEAN - JFC7466 - VN10DKL - PD,16/11/2016,0000427978,65.00,Revenue,NAYLORS TRANSPORT (LEYLAND) ltd,00114828
South Ribble Council,http://statistics.data.gov.uk/doc/local-authority/30UN,Area 2 - Waste Transport/Eastern & Central Teams,External Contractors Charges,4570,STEAM CLEAN - JFC7467 - VO65KRD - PD,16/11/2016,0000427978,65.00,Revenue,NAYLORS TRANSPORT (LEYLAND) ltd,00114828
South Ribble Council,http://statistics.data.gov.uk/doc/local-authority/30UN,Area 2 - Waste Transport/Eastern & Central Teams,External Contractors Charges,4570,STEAM CLEAN - JFC7454 - VO65KPZ - PD,16/11/2016,0000427978,65.00,Revenue,NAYLORS TRANSPORT (LEYLAND) ltd,00114828
South Ribble Council,http://statistics.data.gov.uk/doc/local-authority/30UN,Area 2 - Waste Transport/Eastern & Central Teams,External Contractors Charges,4570,BRAKE TEST & STEAM CLEAN - MH04GSZ - JFC7428 - GA,16/11/2016,0000427978,65.00,Revenue,NAYLORS TRANSPORT (LEYLAND) ltd,00114828
South Ribble Council,http://statistics.data.gov.uk/doc/local-authority/30UN,Property Services,Client Internal Charges,4590,"2016 / 2017 - Weekly waste removal at Leyland Market, @ 79.49 plus ad hoc pick ups as required.",11/11/2016,0000427944,317.96,Revenue,NEALES WASTE MANAGEMENT,130129
South Ribble Council,http://statistics.data.gov.uk/doc/local-authority/30UN,Scrutiny,Contractors Charges 5,5313,Resettlement Programme Void/Loss of rental for up to 8 weeks for 4 properties As agreed with NAME REDACTED,16/11/2016,0000428078,"2,741.48",Revenue,NEW PROGRESS HOUSING ASSOC ref:DNSOU001,00030135
South Ribble Council,http://statistics.data.gov.uk/doc/local-authority/30UN,Environmental Health,Operational Furniture & Equip,4010,Composite labels as per NAME REDACTED,02/11/2016,0000427683,302.90,Revenue,NEWAUTO LTD T/A MOGO (UK),00081566
South Ribble Council,http://statistics.data.gov.uk/doc/local-authority/30UN,Neighbourhood Admin & Support,Materials General,4040,SCHMIDT MINI SWEEPER BRUSHES (SWINGO) - 71107/1,18/11/2016,0000428028,740.80,Revenue,NORTHERN MUNICIPAL SPARES LTD,00117061
South Ribble Council,http://statistics.data.gov.uk/doc/local-authority/30UN,Neighbourhood Admin & Support,Materials General,4040, 4 ROW CHANNEL BRUSH - C/W 4 NUTS/BOLTS - 835/66,30/11/2016,0000428364,411.26,Revenue,NORTHERN MUNICIPAL SPARES LTD,00117061
South Ribble Council,http://statistics.data.gov.uk/doc/local-authority/30UN,Area 1 - Penwortham Western Parishes,Professional Fees,4514,DEPLOYMENT OF OFFICERS OCTOBER 2016,09/11/2016,0000427857,"1,527.72",Revenue,NSL LTD,00116868
South Ribble Council,http://statistics.data.gov.uk/doc/local-authority/30UN,Area 1 - Penwortham Western Parishes,Other Misc,4855,CASH COLLECTION & RINGO TRANSACTIONS OCTOBER 2016,09/11/2016,0000427857,269.11,Revenue,NSL LTD,00116868
South Ribble Council,http://statistics.data.gov.uk/doc/local-authority/30UN,Information Services,Peripherals,4241,1yr Service Agreement Stonegate Managed Service for period 16/12/16 - 15/12/17,23/11/2016,0000428193,"7,470.00",Revenue,NVIRON LTD,00028781
South Ribble Council,http://statistics.data.gov.uk/doc/local-authority/30UN,Information Services,Peripherals,4247,Netilla Licence Renewal for period 04/12/16 - 03/12/17,23/11/2016,0000428199,"1,440.00",Revenue,NVIRON LTD,00028781
South Ribble Council,http://statistics.data.gov.uk/doc/local-authority/30UN,Development Enterprise & Comm Mgnt,Consultancy Fees,4541,Deliver a business and innovation advice service within the specified geographical area around Longton including all the required,04/11/2016,0000426867,"2,700.00",Revenue,ORVIA GROUP LTD,131952
South Ribble Council,http://statistics.data.gov.uk/doc/local-authority/30UN,Development Enterprise & Comm Mgnt,Consultancy Fees,4541,Deliver a business and innovation advice service within the specified geographical area around Longton including all the required,04/11/2016,0000427569,"4,300.00",Revenue,ORVIA GROUP LTD,131952
South Ribble Council,http://statistics.data.gov.uk/doc/local-authority/30UN,Property Services,Rep & Maint Premises,2020,"Please paint the floor of ADDRESS REDACTED, cardinal red. The keys can be picked up from property services.",02/11/2016,0000427758,296.72,Revenue,PDP PROPERTY SERVICES LTD,00106975
South Ribble Council,http://statistics.data.gov.uk/doc/local-authority/30UN,Democratic Services,Operational Furniture & Equip,4010,3 x R1406522 - Ricoh Sp3400Le Black Toners - For Members Rooms,25/11/2016,0000428239,283.44,Revenue,PENKETHS LTD T/A THOMAS COMPUTER SUPPLIE,00037057
South Ribble Council,http://statistics.data.gov.uk/doc/local-authority/30UN,Property Services,External Contractors Charges,4575,Please supply hot committee teas & sweet to the Civic centre for 60 people @ 6.20 per head on 16th November at 16.30,23/11/2016,0000428240,372.00,Revenue,Penningtons Catering Ltd,131684
South Ribble Council,http://statistics.data.gov.uk/doc/local-authority/30UN,Democratic Services,Other Expenses,463A,"PLEASE SUPPLY HOTPOT & BUTTER PIE, PEAS AND CABBAGE AS DISCUSSED ON SUNDAY 13 NOVEMBER 2016",23/11/2016,0000428242,990.00,Revenue,Penningtons Catering Ltd,131684
South Ribble Council,http://statistics.data.gov.uk/doc/local-authority/30UN,Environmental Health,Professional Fees,4522,gov fee,04/11/2016,0000427826,352.00,Revenue,Personnel Checks,131483
South Ribble Council,http://statistics.data.gov.uk/doc/local-authority/30UN,Environmental Health,Professional Fees,4522,admin fee,04/11/2016,0000427826,106.64,Revenue,Personnel Checks,131483
South Ribble Council,http://statistics.data.gov.uk/doc/local-authority/30UN,Area 3 - Parks/Leyland East West,External Contractors Charges,4570,Investigation of Drainage System on ADDRESS REDACTED,02/11/2016,0000427670,"1,000.00",Revenue,PHILIP DIXON CONTRACTORS LTD,00119470
South Ribble Council,http://statistics.data.gov.uk/doc/local-authority/30UN,Area 2 - Waste Transport/Eastern & Central Teams,Materials General,4040,1000 Litres 15W40 Engine oil 50 x  EP20 Grease cartridges,30/11/2016,0000428354,818.55,Revenue,PILKINGTON OILS,00113531
South Ribble Council,http://statistics.data.gov.uk/doc/local-authority/30UN,Information Services,Stationery,4133,60.000 sheets Evolution Everyday A4 80gm 2500 sheets Evolution Everyday A3 80gm 1000 sheets Prem Elements Fire A4,09/11/2016,0000427865,313.00,Revenue,PREMIER PAPER GROUP LTD,00022606
South Ribble Council,http://statistics.data.gov.uk/doc/local-authority/30UN,Information Services,Stationery,4133,"25,000 sheets  Evolution Everyday A4 80gm 5000 sheets Evolution Everyday A3 80gm 15000 sheets Evolution Business A4",25/11/2016,0000428244,259.54,Revenue,PREMIER PAPER GROUP LTD,00022606
South Ribble Council,http://statistics.data.gov.uk/doc/local-authority/30UN,Area 2 - Waste Transport/Eastern & Central Teams,Materials General,4040,TR169,23/11/2016,0000428194,692.80,Revenue,PRESTON TYRE SPECIALISTS,00109516
South Ribble Council,http://statistics.data.gov.uk/doc/local-authority/30UN,Democratic Services,Printing,4127,"12,250 - 2nd Reminder Run",02/11/2016,0000427681,"1,924.41",Revenue,PRINT IMAGE NETWORK LTD,00089199
South Ribble Council,http://statistics.data.gov.uk/doc/local-authority/30UN,Democratic Services,Printing,4127,"12,000 South Ribble HEF outgoing envelopes",04/11/2016,0000427843,435.40,Revenue,PRINT IMAGE NETWORK LTD,00089199
South Ribble Council,http://statistics.data.gov.uk/doc/local-authority/30UN,Information Services,Postage,4292, Blue Ink cartridge 789-BL,30/11/2016,0000428418,334.94,Revenue,Purchase Power,00093923
South Ribble Council,http://statistics.data.gov.uk/doc/local-authority/30UN,Information Services,Postage,4292,Black Ink cartridge  78P-K,30/11/2016,0000428418,127.27,Revenue,Purchase Power,00093923
South Ribble Council,http://statistics.data.gov.uk/doc/local-authority/30UN,Information Services,Postage,4292,613H EZ Peel Tape bx 3,30/11/2016,0000428418,120.57,Revenue,Purchase Power,00093923
South Ribble Council,http://statistics.data.gov.uk/doc/local-authority/30UN,Information Services,Postage,4292,non vat,30/11/2016,0000428418,"9,090.00",Revenue,Purchase Power,00093923
South Ribble Council,http://statistics.data.gov.uk/doc/local-authority/30UN,Development Enterprise & Comm Mgnt,Other Misc,4851,Sports Coaching on the Active Schools Primary Schools Coaching Programme,16/11/2016,0000427739,500.00,Revenue,NAME REDACTEED,132085
South Ribble Council,http://statistics.data.gov.uk/doc/local-authority/30UN,Property Services,Rep & Maint Premises,2020,Please supply goods & labour to erect a new fence at Penwortham Holme as per your quotation,02/11/2016,0000427766,"1,500.00",Revenue,RED ROSE BUILDING MAINTENANCE,00085410
South Ribble Council,http://statistics.data.gov.uk/doc/local-authority/30UN,Property Services,Rep & Maint Premises,2020,materials,02/11/2016,0000427766,"3,900.00",Revenue,RED ROSE BUILDING MAINTENANCE,00085410
South Ribble Council,http://statistics.data.gov.uk/doc/local-authority/30UN,Property Services,Rep & Maint Premises,2020,Please attend worden park to dig out an clear the drains as detailed in the inspection report,30/11/2016,0000428357,324.00,Revenue,RED ROSE BUILDING MAINTENANCE,00085410
South Ribble Council,http://statistics.data.gov.uk/doc/local-authority/30UN,Property Services,Rep & Maint Premises,2020,materials,30/11/2016,0000428357,371.00,Revenue,RED ROSE BUILDING MAINTENANCE,00085410
South Ribble Council,http://statistics.data.gov.uk/doc/local-authority/30UN,Development Enterprise & Comm Mgnt,Other Misc,485A,Rental costs for storage unit for Economic Development November 2016 to March 31st 2017,23/11/2016,0000428103,288.86,Revenue,Red Rose Self Storage Limited,132014
South Ribble Council,http://statistics.data.gov.uk/doc/local-authority/30UN,Property Services,Energy Costs,2301,"Please supply 4,000ltrs of fuel oil to ADDRESS REDACTED, contact NAMES REDACTED",18/11/2016,0000428121,"2,144.00",Revenue,RIBBLE FUEL OILS,00047461
South Ribble Council,http://statistics.data.gov.uk/doc/local-authority/30UN,Information Services,Lease Rental Charges,4036,Lease Rental Charges,18/11/2016,0000428137,"1,866.00",Revenue,RICOH (UK) LTD,00082976
South Ribble Council,http://statistics.data.gov.uk/doc/local-authority/30UN,Area 1 - Penwortham Western Parishes,Materials General,4040,36 X 5 LTRS TRUSTEE AMENITY,16/11/2016,0000426372,972.00,Revenue,RIGBY TAYLOR LTD,00033145
South Ribble Council,http://statistics.data.gov.uk/doc/local-authority/30UN,HR & Communications,Payroll Suspense,1741,ANNUAL SUBSCRIPTION FOR 2017 NAME REDACTED MEMBERSHIP NUMBER - 52069,23/11/2016,0000428176,290.00,Revenue,RTPI,00033491
South Ribble Council,http://statistics.data.gov.uk/doc/local-authority/30UN,HR & Communications,Payroll Suspense,1741,ANNUAL SUBSCRIPTION FOR 2017 NAME REDACTED MEMBERSHIP NUMBER - 45673,23/11/2016,0000428176,145.00,Revenue,RTPI,00033491
South Ribble Council,http://statistics.data.gov.uk/doc/local-authority/30UN,HR & Communications,Payroll Suspense,1741,ANNUAL SUBSCRIPTION FOR 2017 NAME REDACTED MEMBERSHIP NUMBER - 57737,23/11/2016,0000428176,145.00,Revenue,RTPI,00033491
South Ribble Council,http://statistics.data.gov.uk/doc/local-authority/30UN,HR & Communications,Payroll Suspense,1741,ANNUAL SUBSCRIPTION FOR 2017 NAME REDACTED MEMBERSHIP NUMBER - 54743,23/11/2016,0000428176,145.00,Revenue,RTPI,00033491
South Ribble Council,http://statistics.data.gov.uk/doc/local-authority/30UN,HR & Communications,Payroll Suspense,1741,ANNUAL SUBSCRIPTION FOR 2017 NAME REDACTED MEMBERSHIP NUMBER - 85648,23/11/2016,0000428176,145.00,Revenue,RTPI,00033491
South Ribble Council,http://statistics.data.gov.uk/doc/local-authority/30UN,HR & Communications,Payroll Suspense,1741,ANNUAL SUBSCRIPTION FOR 2017 NAME REDACTED MEMBERSHIP NUMBER - 45672,23/11/2016,0000428176,145.00,Revenue,RTPI,00033491
South Ribble Council,http://statistics.data.gov.uk/doc/local-authority/30UN,HR & Communications,Payroll Suspense,1741,ANNUAL SUBSCRIPTION FOR 2017 NAME REDACTED MEMBERSHIP NUMBER - 34830,23/11/2016,0000428176,290.00,Revenue,RTPI,00033491
South Ribble Council,http://statistics.data.gov.uk/doc/local-authority/30UN,HR & Communications,Payroll Suspense,1741,ANNUAL SUBSCRIPTION FOR 2017 NAME REDACTED ,25/11/2016,0000428273,58.00,Revenue,RTPI,00033491
South Ribble Council,http://statistics.data.gov.uk/doc/local-authority/30UN,HR & Communications,Payroll Suspense,1741,ANNUAL SUBSCRIPTION FOR 2017 NAME REDACTED,25/11/2016,0000428273,290.00,Revenue,RTPI,00033491
South Ribble Council,http://statistics.data.gov.uk/doc/local-authority/30UN,HR & Communications,Payroll Suspense,1741,ANNUAL SUBSCRIPTION 2017 FOR NAME REDACTED MEMBERSHIP NUMBER 34988,30/11/2016,0000428303,290.00,Revenue,RTPI,00033491
South Ribble Council,http://statistics.data.gov.uk/doc/local-authority/30UN,Area 3 - Parks/Leyland East West,Capital Expenditure,C230,FELLING 29 POPLARS WITH DISPOSAL OF TIMBER AND STUMP GRINDING - WORDEN PARK LEYLAND,02/11/2016,0000427669,"8,800.00",Revenue,RUSS ASPINALL T/A BEARDWOOD TREE SERVICE,00120443
South Ribble Council,http://statistics.data.gov.uk/doc/local-authority/30UN,Property Services,Energy Costs,2304,3/9/16 to 7/10/16,23/11/2016,0000428141,721.58,Revenue,SCOTTISH HYDRO ELECTRIC,130051
South Ribble Council,http://statistics.data.gov.uk/doc/local-authority/30UN,Property Services,Energy Costs,2307,ccl,23/11/2016,0000428141,26.01,Revenue,SCOTTISH HYDRO ELECTRIC,130051
South Ribble Council,http://statistics.data.gov.uk/doc/local-authority/30UN,Property Services,Energy Costs,2304,8/10/16 to 8/11/16,23/11/2016,0000428142,925.11,Revenue,SCOTTISH HYDRO ELECTRIC,130051
South Ribble Council,http://statistics.data.gov.uk/doc/local-authority/30UN,Property Services,Energy Costs,2307,ccl,23/11/2016,0000428142,45.25,Revenue,SCOTTISH HYDRO ELECTRIC,130051
South Ribble Council,http://statistics.data.gov.uk/doc/local-authority/30UN,Property Services,Energy Costs,2303,1/10/16 to 31/10/16,23/11/2016,0000428159,989.80,Revenue,SCOTTISH HYDRO ELECTRIC,130051
South Ribble Council,http://statistics.data.gov.uk/doc/local-authority/30UN,Property Services,Energy Costs,2307,ccl,23/11/2016,0000428159,51.11,Revenue,SCOTTISH HYDRO ELECTRIC,130051
South Ribble Council,http://statistics.data.gov.uk/doc/local-authority/30UN,Property Services,Energy Costs,2303,1/10/16 to 31/10/16,23/11/2016,0000428162,"2,867.41",Revenue,SCOTTISH HYDRO ELECTRIC,130051
South Ribble Council,http://statistics.data.gov.uk/doc/local-authority/30UN,Property Services,Energy Costs,2307,ccl,23/11/2016,0000428162,150.96,Revenue,SCOTTISH HYDRO ELECTRIC,130051
South Ribble Council,http://statistics.data.gov.uk/doc/local-authority/30UN,Healthy Communities,Consultancy Fees,4536,"R & M 2016/17 payable by 12 payments of 14,931.44 + VAT",04/11/2016,0000427292,"14,931.44",Revenue,SERCO LEISURE (OP) LTD,00094906
South Ribble Council,http://statistics.data.gov.uk/doc/local-authority/30UN,Healthy Communities,Consultancy Fees,4536,"R & M 2016/17 payable by 12 payments of 14,931.44 + VAT",30/11/2016,0000428104,"14,931.44",Revenue,SERCO LEISURE (OP) LTD,00094906
South Ribble Council,http://statistics.data.gov.uk/doc/local-authority/30UN,Planning,Legal,4821,LDC Advice - Long Fold Farm 31st October 2016 - Reviewing documentation and advising on the aviation aspects of the lawful,16/11/2016,0000428052,250.00,Revenue,Setfords Law Ltd,132112
South Ribble Council,http://statistics.data.gov.uk/doc/local-authority/30UN,Information Services,Professional Fees,4520,Shredding of Confidential Waste 2016/17,16/11/2016,0000428059,266.87,Revenue,SHRED-IT LTD,00109134
South Ribble Council,http://statistics.data.gov.uk/doc/local-authority/30UN,Information Services,Peripherals,4241,Renewal of Veritas products as per quote no. 443804 - 1 year cover from 17/12/16 & 06/01/17,23/11/2016,0000428197,"1,402.12",Revenue,SOFTWARE RENEWAL CENTRE,00112189
South Ribble Council,http://statistics.data.gov.uk/doc/local-authority/30UN,Information Services,Peripherals,4241,Renewal of Symantec Gold/Basic Maintenance as per quote no. 467927 - 1 year cover for period 03/12/16 - 02/12/17,23/11/2016,0000428198,661.00,Revenue,SOFTWARE RENEWAL CENTRE,00112189
South Ribble Council,http://statistics.data.gov.uk/doc/local-authority/30UN,Healthy Communities,Consultancy Fees,4532,"Leisure Services Fee 2016/17 (249,981.70) payable by 12 payments of 20,831.81 + VAT",04/11/2016,0000427293,"41,663.66",Revenue,SOUTH RIBBLE COMMUNITY LEISURE LTD,00094210
South Ribble Council,http://statistics.data.gov.uk/doc/local-authority/30UN,Healthy Communities,Consultancy Fees,4532,"Leisure Services Fee 2016/17 (249,981.70) payable by 12 payments of 20,831.81 + VAT",30/11/2016,0000428105,"41,663.66",Revenue,SOUTH RIBBLE COMMUNITY LEISURE LTD,00094210
South Ribble Council,http://statistics.data.gov.uk/doc/local-authority/30UN,Democratic Services,Other Misc,4424,The Referendum - For the use of South Ribble Tennis Centre for the count including the provision of bottled water,25/11/2016,0000428252,"1,100.00",Revenue,SOUTH RIBBLE COMMUNITY LEISURE LTD,00094210
South Ribble Council,http://statistics.data.gov.uk/doc/local-authority/30UN,Development Enterprise & Comm Mgnt,Other Misc,485A,Hosting City Deal Construction Club meeting on November 11th at South Ribble Tennis Centre Cost including room hire and,30/11/2016,0000428258,400.00,Revenue,SOUTH RIBBLE COMMUNITY LEISURE LTD,00094210
South Ribble Council,http://statistics.data.gov.uk/doc/local-authority/30UN,Development Enterprise & Comm Mgnt,Other Misc,4851,"Consultation, design and creation of marketing materials for Leyland Truck Trail and launch event on November 18th",30/11/2016,0000428312,"4,034.00",Revenue,STONE CREATE LTD,130896
South Ribble Council,http://statistics.data.gov.uk/doc/local-authority/30UN,Development Enterprise & Comm Mgnt,Other Misc,4851,brochure & flyers,30/11/2016,0000428312,582.00,Revenue,STONE CREATE LTD,130896
South Ribble Council,http://statistics.data.gov.uk/doc/local-authority/30UN,Regeneration,Capital Expenditure,C234,Bee keeping consultancy,23/11/2016,0000428051,"2,100.00",Revenue,The Bee centre,132104
South Ribble Council,http://statistics.data.gov.uk/doc/local-authority/30UN,HR & Communications,Training Expense-Course Fees,1403,PRINCE II FOUNDATION AND PRACTITIONER COURSE STARTING 14/11//2016 - 18/11/20165 DAY COURSE,04/11/2016,0000427759,735.00,Revenue,THE KNOWLEDGE ACADEMY LTD,130041
South Ribble Council,http://statistics.data.gov.uk/doc/local-authority/30UN,Legal,Publications,4142,aldridge,16/11/2016,0000428004,408.00,Revenue,THOMSON REUTERS,00034979
South Ribble Council,http://statistics.data.gov.uk/doc/local-authority/30UN,Environmental Health,Other Misc,4851,Domestic Abuse Bus Ticket Campaign (OPCC) as per NAME REDACTED,25/11/2016,0000428250,658.00,Revenue,TICKETMEDIA LIMITED,132108
South Ribble Council,http://statistics.data.gov.uk/doc/local-authority/30UN,Area 2 - Waste Transport/Eastern & Central Teams,External Contractors Charges,4570,"SIGN CLEANING WITHIN SOUTH RIBBLE BOROUGH. ( 3 X 8 hour nights @ 25:00 Hour *24 hours = 600) ( 7 X 8 hour days",02/11/2016,0000427566,"1,552.00",Revenue,ULTRA CLEAN CONSERVATORIES,130034
South Ribble Council,http://statistics.data.gov.uk/doc/local-authority/30UN,Property Services,Water Charges,2511,12/8/16 to 17/11/16,30/11/2016,0000428333,649.51,Revenue,UNITED UTILITIES WATER PLC,00029845
South Ribble Council,http://statistics.data.gov.uk/doc/local-authority/30UN,Property Services,Water Charges,2511,4/8/16 to 9/11/16,30/11/2016,0000428334,"2,310.10",Revenue,UNITED UTILITIES WATER PLC,00029845
South Ribble Council,http://statistics.data.gov.uk/doc/local-authority/30UN,Property Services,Water Charges,2511,15/8/16 to 14/11/16,30/11/2016,0000428368,"7,409.05",Revenue,UNITED UTILITIES WATER PLC,00029845
South Ribble Council,http://statistics.data.gov.uk/doc/local-authority/30UN,Property Services,Operational Furniture & Equip,4012,2016 / 2017 rental fees for vending machines at the Civic Centre from September 2016 to March 2017,02/11/2016,0000427741,322.09,Revenue,VENDING ENTERPRISES,00101501
South Ribble Council,http://statistics.data.gov.uk/doc/local-authority/30UN,Democratic Services,Other Expenses,463A,Please provide Traffic Management to be discussed at our forthcoming meeting in September for Remembrance Sunday on 13th November 2016,30/11/2016,0000428389,600.00,Revenue,VENTBROOK LTD,131218
South Ribble Council,http://statistics.data.gov.uk/doc/local-authority/30UN,Information Services,Peripherals,4269,"Annual purchase order for ISDN lines, line rentals & call charges for period 01/04/16 - 31/03/17",02/11/2016,0000427765,"1,308.05",Revenue,VODAFONE RE:CABLE & WIRELESS UK,130810
South Ribble Council,http://statistics.data.gov.uk/doc/local-authority/30UN,Information Services,Peripherals,4247,"Annual purchase order for link, internet & router for period 01/04/16 - 31/03/17",09/11/2016,0000427860,"1,312.66",Revenue,VODAFONE RE:CABLE & WIRELESS UK,130810
South Ribble Council,http://statistics.data.gov.uk/doc/local-authority/30UN,Area 3 - Parks/Leyland East West,Materials General,4046,Spring bedding plants and bulbs as per attached list. Option 1 Bedding plants,02/11/2016,0000427381,"2,240.45",Revenue,Walkers Oakfield Nurseries,131380
South Ribble Council,http://statistics.data.gov.uk/doc/local-authority/30UN,Area 3 - Parks/Leyland East West,Materials General,4046,Bulbs For delivery week commencing Mon 3rd October 2016,02/11/2016,0000427381,263.50,Revenue,Walkers Oakfield Nurseries,131380
South Ribble Council,http://statistics.data.gov.uk/doc/local-authority/30UN,Revenues Plus,Postage,4291,Revenues mail services October 2016,02/11/2016,0000427763,375.58,Revenue,WHISTL  UK LTD,131310
South Ribble Council,http://statistics.data.gov.uk/doc/local-authority/30UN,Revenues Plus,Postage,4291,Revenues mail services October 2016,09/11/2016,0000427913,535.77,Revenue,WHISTL  UK LTD,131310
South Ribble Council,http://statistics.data.gov.uk/doc/local-authority/30UN,Revenues Plus,Postage,4291,Revenues mail services October 2016,16/11/2016,0000428087,368.49,Revenue,WHISTL  UK LTD,131310
South Ribble Council,http://statistics.data.gov.uk/doc/local-authority/30UN,Revenues Plus,Postage,4291,Revenues mail services November 16,23/11/2016,0000428261,281.74,Revenue,WHISTL  UK LTD,131310
South Ribble Council,http://statistics.data.gov.uk/doc/local-authority/30UN,Area 3 - Parks/Leyland East West,Grounds Maint Cntrctrs Chgs,4657,INSTALL PLAY BARK INTO PLAYGROUND AT HOLLAND HOUSE - REF: 15984,02/11/2016,0000427387,"2,145.00",Revenue,WILLIAM PYE LTD,00031590
South Ribble Council,http://statistics.data.gov.uk/doc/local-authority/30UN,Area 3 - Parks/Leyland East West,Grounds Maint Cntrctrs Chgs,4657,INSTALL PLAY BARK INTO PLAYGROUND AT FARINGTON PARK - ORANGE PIT - REF: 15983,02/11/2016,0000427389,"1,475.00",Revenue,WILLIAM PYE LTD,00031590
South Ribble Council,http://statistics.data.gov.uk/doc/local-authority/30UN,HR & Communications,Training Expense-Course Fees,1408,OCTOBER 2016 ACTIVITY,23/11/2016,0000428248,200.00,Revenue,WRIGHTINGTON WIGAN & LEIGH NHS FOUNDATION TRUST,131288
South Ribble Council,http://statistics.data.gov.uk/doc/local-authority/30UN,HR & Communications,Training Expense-Course Fees,1408,Training Expense-Course Fees,23/11/2016,0000428248,65.00,Revenue,WRIGHTINGTON WIGAN & LEIGH NHS FOUNDATION TRUST,131288
South Ribble Council,http://statistics.data.gov.uk/doc/local-authority/30UN,Housing,Cap Grant- Improve Grants,C570,DFG works at ADDRESS REDACTED as per your quote,04/11/2016,0000427788,"16,984.10",Revenue,Yarrow Property and Building Services Limited,132027
South Ribble Council,http://statistics.data.gov.uk/doc/local-authority/30UN,Neighbourhood Admin & Support,Clothing- Uniforms & Laundry,4410,ROCKFALL EBONITE - BOOTS - SIZE 8 - ROK461,18/11/2016,0000428107,114.00,Revenue,Yeshili Relective Material T/A VIZWEAR,132098
South Ribble Council,http://statistics.data.gov.uk/doc/local-authority/30UN,Neighbourhood Admin & Support,Clothing- Uniforms & Laundry,4410,ROCKFALL EBONITE -BOOTS - SIZE 10 - ROK461,18/11/2016,0000428107,190.00,Revenue,Yeshili Relective Material T/A VIZWEAR,132098
South Ribble Council,http://statistics.data.gov.uk/doc/local-authority/30UN,Neighbourhood Admin & Support,Clothing- Uniforms & Laundry,4410,ROCKFALL EBONITE - BOOTS  - SIZE 9 - ROK461,18/11/2016,0000428107,76.00,Revenue,Yeshili Relective Material T/A VIZWEAR,132098
South Ribble Council,http://statistics.data.gov.uk/doc/local-authority/30UN,Neighbourhood Admin & Support,Clothing- Uniforms & Laundry,4410,CLEAR  SAFETY SPECS EN166.1.F - JSP-309,18/11/2016,0000428107,12.74,Revenue,Yeshili Relective Material T/A VIZWEAR,132098
